[Event "Alef Super Stars Blitz 2023"]
[Site "Almamsha"]
[Date "2023.12.06"]
[Round "2.2"]
[White "Nihal Sarin"]
[Black "Yu, Yangyi"]
[Result "1/2-1/2"]
[ECO "A13"]
[WhiteElo "2688"]
[BlackElo "2714"]
[Annotator "TA"]
[PlyCount "78"]
[EventDate "2023.11.27"]
[EventType "tourn"]
[EventCountry "UAE"]
[SourceTitle "playchess.com"]
[Source "ChessBase"]
[SourceQuality "1"]
[TimeControl "180+2"]

{[%evp 11,78,-2,18,0,41,14,31,31,37,37,61,27,31,29,36,19,14,16,9,9,29,11,23,20,33,9,19,5,16,20,22,0,27,15,40,18,25,22,43,19,31,22,28,20,14,17,26,23,23,22,22,12,27,0,0,0,0,0,9,2,5,0,0,0,0,0,0,0,0]} 1. Nf3 {[%emt 0:00:01]} d5 {[%emt 0:00:01]} 2. e3 {[%emt 0:00:01]} Nf6 {[%emt 0:00:01]} 3. c4 {[%emt 0:00:01]} e6 {[%emt 0:00:00]} 4. Nc3 {[%emt 0:00:01]} Be7 {[%emt 0:00:04]} 5. b3 {[%emt 0:00:02]} O-O {[%emt 0:00:01]} 6. Bb2 {[%emt 0:00:01]} b6 {[%emt 0:00:01]} 7. Rc1 {[%emt 0:00:07] [#] A13: English Opening: 1...e6.} a5 $146 {[%emt 0:00:10]} ({Predecessor:} 7... Bb7 8. cxd5 Nxd5 9. Nxd5 Bxd5 10. Bc4 Bb7 11. O-O c5 12. d4 Nc6 13. Qe2 cxd4 14. Nxd4 Nxd4 15. Bxd4 {1-0 Nihal,S (2620)-Tang,A (2538) Chess.com U20 Speed blitz 2020 (1.21)}) 8. d4 {[%emt 0:00:07]} Bb7 {[%emt 0:00:04]} 9. Bd3 {[%emt 0:00:03] White is slightly better.} c5 {[%emt 0:00:07]} 10. O-O {[%emt 0:00:06]} Nbd7 {[%emt 0:00:07]} 11. cxd5 {[%emt 0:00:35] White is more active.} Nxd5 {[%emt 0:00:05]} 12. Nxd5 {[%emt 0:00:01]} Bxd5 {[%emt 0:00:05]} 13. Bc4 {[%emt 0:00:25]} Bxc4 {[%emt 0:00:25]} 14. bxc4 {[%emt 0:00:01]} cxd4 {[%emt 0:00:08]} 15. exd4 {[%emt 0:00:03]} a4 {[%emt 0:00:02]} 16. Qe2 {[%emt 0:00:04]} h6 {[%emt 0:00:06]} 17. Rfd1 {[%emt 0:00:02]} Re8 {[%emt 0:00:04]} 18. g3 {[%emt 0:00:04]} Qc7 {[%emt 0:00:02]} 19. Qd3 {[%emt 0:00:12]} a3 {[%emt 0:00:06]} 20. Bc3 {[%emt 0:00:06][%cal Bb2c3,Bc3d2,Bd2e3,Be3f4][%mdl 32]} Rac8 {[%emt 0:00:04]} 21. Bd2 {[%emt 0:00:01]} Red8 {[%emt 0:00:04]} 22. Be3 {[%emt 0:00:08]} Nf6 {[%emt 0:00:05]} 23. Qb3 {[%emt 0:00:07]} Ng4 {[%emt 0:00:29]} 24. Bf4 {[%emt 0:00:02]} Qa7 {[%emt 0:00:05]} 25. h3 {[%emt 0:00:24]} Nf6 {[%emt 0:00:00]} 26. Ne5 {[%emt 0:00:01]} Nd7 {[%emt 0:00:05]} 27. Nxd7 {[%emt 0:00:07]} Rxd7 {[%emt 0:00:03]} 28. d5 {[%emt 0:00:15]} exd5 {[%emt 0:00:04]} 29. cxd5 {[%emt 0:00:02]} Rxc1 {[%emt 0:00:04]} 30. Bxc1 {[%emt 0:00:01]} Bc5 {[%emt 0:00:03]} 31. Be3 {[%emt 0:00:01]} Qa5 {[%emt 0:00:06]} 32. Bxc5 {[%emt 0:00:06]} Qxc5 $11 {[%emt 0:00:01][%mdl 4096] Endgame KQR-KQR. The position is equal.} 33. Kg2 {[%emt 0:00:05]} Rd6 {[%emt 0:00:02]} 34. Rd2 {[%emt 0:00:03]} Rd8 {[%emt 0:00:09]} 35. h4 {[%emt 0:00:01]} b5 {[%emt 0:00:02]} 36. Rd3 {[%emt 0:00:07]} b4 {[%emt 0:00:07]} 37. Kf1 {[%emt 0:00:42]} Qc1+ {[%emt 0:00:02]} 38. Kg2 {[%emt 0:00:00]} Qc5 {[%emt 0:00:01]} 39. Kf1 {[%emt 0:00:00]} Qc1+ {[%emt 0:00:03] Weighted Error Value: White=0.10 (very precise) /Black=0.09 (flawless)} 1/2-1/2

[Event "Alef Super Stars Blitz 2023"]
[Site "Almamsha"]
[Date "2023.12.06"]
[Round "3.1"]
[White "Yu, Yangyi"]
[Black "Salem, A.R. Saleh"]
[Result "1-0"]
[ECO "C84"]
[WhiteElo "2714"]
[BlackElo "2639"]
[Annotator "TA"]
[PlyCount "83"]
[EventDate "2023.11.27"]
[EventType "tourn"]
[EventCountry "UAE"]
[SourceTitle "playchess.com"]
[Source "ChessBase"]
[SourceQuality "1"]
[TimeControl "180+2"]

{[%evp 15,83,14,14,0,7,0,0,2,9,16,17,8,15,13,11,0,16,0,0,6,10,7,44,25,30,18,16,0,13,17,15,25,27,29,20,24,42,39,54,57,77,81,81,78,96,71,77,79,74,67,168,156,147,137,421,424,334,166,564,556,2889,589,1189,341,625,595,29986,29987,29987,827]} 1. e4 {[%emt 0:00:02]} e5 {[%emt 0:00:00]} 2. Nf3 {[%emt 0:00:01]} Nc6 {[%emt 0:00:01]} 3. Bb5 {[%emt 0:00:00]} a6 {[%emt 0:00:01]} 4. Ba4 {[%emt 0:00:01]} Nf6 {[%emt 0:00:01]} 5. O-O {[%emt 0:00:01]} Be7 {[%emt 0:00:01]} 6. d3 {[%emt 0:00:01]} b5 {[%emt 0:00:01]} 7. Bb3 {[%emt 0:00:00]} d6 {[%emt 0:00:01]} 8. a4 {[%emt 0:00:01]} Bd7 {[%emt 0:00:01] The main line 8...Bd7 scores better than 8...b4.} 9. Be3 {[%emt 0:00:05] C84: Closed Ruy Lopez: Unusual White 6th moves.} O-O {[%emt 0:00:06]} 10. axb5 {[%emt 0:00:06] 10.h3 is vanishing.} axb5 {[%emt 0:00:01]} 11. Nc3 {[%emt 0:00:02] The position is equal.} Na5 {[%emt 0:00:39]} 12. Nd5 {[%emt 0:00:10]} Nxd5 {[%emt 0:00:11]} 13. Bxd5 {[%emt 0:00:01]} c6 {[%emt 0:00:00]} 14. Ba2 {[%emt 0:00:01]} c5 {[%emt 0:00:30]} 15. c3 {[%emt 0:00:18]} Nc6 {[%emt 0:00:05]} 16. Bd5 {[%emt 0:00:02]} Rxa1 {[%emt 0:00:39]} 17. Qxa1 {[%emt 0:00:01] [#]} Bf6 $146 {[%emt 0:00:01]} ({Predecessor:} 17... Qa8 18. Ng5 Bxg5 19. Bxg5 Qc8 20. Qa2 h6 21. Be3 Be6 22. f4 exf4 23. Bxf4 Qd7 24. Ra1 Rd8 25. Bxc6 Qxc6 26. Qa6 Qxa6 27. Rxa6 d5 28. Rd6 Rxd6 29. Bxd6 {½-½ Shirov,A (2704)-Nihal,S (2662) Wch Rapid Warsaw 2021 (1)}) 18. Qa6 {[%emt 0:00:08][%csl LRb5,LRc6]} Qc8 {[%emt 0:00:08]} 19. Ra1 {[%emt 0:00:01]} Qc7 {[%emt 0:00:27]} 20. h3 {[%emt 0:00:16]} h6 {[%emt 0:00:03]} 21. Nh2 {[%emt 0:00:37]} Rb8 {[%emt 0:00:10]} 22. Ng4 {[%emt 0:00:01]} Be7 {[%emt 0:00:03]} 23. Qa2 {[%emt 0:00:08]} Be8 {[%emt 0:00:19]} 24. f4 {[%emt 0:00:05]} h5 {[%emt 0:00:02]} 25. Nh2 {[%emt 0:00:06]} Bf6 {[%emt 0:00:05]} 26. Nf3 {[%emt 0:00:01]} Ne7 {[%emt 0:00:04]} 27. fxe5 {[%emt 0:00:07]} dxe5 {[%emt 0:00:01]} 28. Qa7 {[%emt 0:00:22]} Nxd5 {[%emt 0:00:08]} 29. exd5 {[%emt 0:00:00]} Qd8 {[%emt 0:00:02]} 30. Nd2 {[%emt 0:00:10] White is much more active.} (30. Qxc5 Rc8 31. Qb4 Qxd5 $15) 30... Rc8 {[%emt 0:00:06] [#]} 31. c4 {[%emt 0:00:01]} (31. Bxc5 Qxd5 32. Ne4 Bd8 $17) 31... bxc4 32. dxc4 {[%emt 0:00:01]} Rb8 {[%emt 0:00:05]} (32... e4 $1 $14) 33. Ne4 $36 {[%emt 0:00:03][%mdl 2048] White is in control.} (33. Qxc5 Be7 34. Qa5 Qxa5 35. Rxa5 Bb4 $16) (33. Bxc5 Rxb2 34. Ne4 Bg5 $16) 33... Rxb2 {[%emt 0:00:01]} 34. Qxc5 {[%emt 0:00:10] Nxf6+ would be deadly.} Be7 {[%emt 0:00:03][%mdl 8192] Black cannot hold the game after this.} (34... Bd7 $16) 35. d6 {[%emt 0:00:01]} Bf8 {[%emt 0:00:00]} 36. Qxe5 {[%emt 0:00:11] Black is weak on the dark squares} (36. Qd5 $142) 36... Rc2 $2 {[%emt 0:00:01]} (36... Re2 {is more resistant.}) 37. Qd5 {[%emt 0:00:07] Strongly threatening Ra8.} (37. Qxh5 Bc6 38. Rf1 Bxe4 39. Qxf7+ (39. Rxf7 $2 Rxg2+ 40. Kf1 Qxd6 $19) 39... Kh7 40. Qh5+ (40. Qxf8 Rxg2+ 41. Kh1 Rg3+ {[%mdl 64] Discovered Attack} 42. Kh2 Qh4) 40... Kg8 $16) 37... Qb8 {[%emt 0:00:06]} 38. Rf1 {[%emt 0:00:14]} (38. Qxh5 Qb2 39. Ra8 Rxg2+ 40. Kf1 Rh2 $15) (38. Ra8 $142 Qb2 39. Nf6+ {[%mdl 64] Promotion} (39. Rxe8 $2 {gets mated.} Rxg2+ 40. Kh1 Rh2+ 41. Kg1 Qg2#) 39... gxf6 40. Rxe8) 38... Qc8 {[%emt 0:00:01]} 39. Nc5 $2 {[%emt 0:00:07]} ({Weaker is} 39. Qxh5 Qe6 40. Rf4 f6 $16) (39. Qg5 {White wants to mate with Nf6+.} Rxg2+ 40. Qxg2) 39... Re2 $2 {[%emt 0:00:02]} (39... Bxd6 40. Qxd6 Qc6) 40. d7 {[%emt 0:00:03][%mdl 64] [#] Deflection} (40. Qxh5 $2 Rxe3 41. Qd5 Re2 $19) 40... Bxd7 {[%emt 0:00:01]} 41. Qxf7+ {[%emt 0:00:02]} ({Inferior is} 41. Qxd7 Qxd7 42. Nxd7 Rxe3 $11) 41... Kh7 {[%emt 0:00:03]} 42. Qxh5+ {[%emt 0:00:02] Weighted Error Value: White=0.41/Black=0.61} (42. Nxd7 $142 Be7 43. Bd4 Rxg2+ {[%mdl 64] Decoy} 44. Kxg2 Qc6+ 45. Kh2 Bd6+ 46. Kg1 Be5 47. Nxe5) 1-0

[Event "Alef Super Stars Blitz 2023"]
[Site "Almamsha"]
[Date "2023.12.06"]
[Round "3.2"]
[White "Sjugirov, Sanan"]
[Black "Nihal Sarin"]
[Result "1-0"]
[ECO "B08"]
[WhiteElo "2703"]
[BlackElo "2688"]
[Annotator "TA"]
[PlyCount "79"]
[EventDate "2023.11.27"]
[EventType "tourn"]
[EventCountry "UAE"]
[SourceTitle "playchess.com"]
[Source "ChessBase"]
[SourceQuality "1"]
[TimeControl "180+2"]

{[%evp 12,79,39,24,23,20,83,77,78,1,11,-26,43,-18,-11,-23,-21,-14,-16,-20,-15,-18,289,285,313,303,298,321,323,322,320,324,319,306,392,341,420,408,401,379,462,461,462,461,461,446,451,446,439,436,507,493,517,517,517,512,558,557,548,527,683,707,709,695,786,785,889,868,931,829]} 1. e4 {[%emt 0:00:01]} g6 {[%emt 0:00:01]} 2. d4 {[%emt 0:00:01]} Bg7 {[%emt 0:00:01]} 3. Nc3 {[%emt 0:00:01]} d6 {[%emt 0:00:01]} 4. Be3 {[%emt 0:00:01]} Nc6 {[%emt 0:00:02]} 5. h3 {[%emt 0:00:09]} Nf6 {[%emt 0:00:03]} 6. Nf3 {[%emt 0:00:02]} O-O {[%emt 0:00:03]} 7. Qd2 {[%emt 0:00:11]} a6 {[%emt 0:00:01] B08: Pirc Defence: Classical System.} 8. Bh6 {[%emt 0:00:07]} e5 {[%emt 0:00:01]} (8... b5 $11 {keeps the balance.}) 9. Bxg7 $16 {[%emt 0:00:03]} Kxg7 {[%emt 0:00:01] [#] White is better.} 10. Be2 $5 {[%emt 0:00:28][%mdl 4] A promising side line.} ({White should try} 10. O-O-O $1 $16) 10... b5 $11 {[%emt 0:00:08]} 11. a3 {[%emt 0:00:02]} (11. O-O-O {is more complex.} b4 12. dxe5 Nxe5 13. Nd5) 11... Bb7 {[%emt 0:00:02] [#]} (11... exd4 $11 12. Nxd4 Nxd4 13. Qxd4 c5) 12. O-O $146 {[%emt 0:00:08]} (12. d5 $14 Nb8 13. O-O-O) ({Predecessor:} 12. O-O-O Qe7 13. d5 Nb8 14. Nh2 Nbd7 15. Ng4 Ng8 16. Ne3 Nc5 17. g4 Rab8 18. h4 {1-0 Cordovil,J (2285)-Cary,F (2230) POR-ch 46th Portugal 1990 (4)}) 12... exd4 {[%emt 0:00:06]} 13. Nxd4 {[%emt 0:00:00]} Nxd4 {[%emt 0:00:02]} 14. Qxd4 {[%emt 0:00:01]} c5 {[%emt 0:00:01]} 15. Qd3 {[%emt 0:00:18]} Re8 {[%emt 0:00:01][%cal Rf6e4]} 16. Bf3 {[%emt 0:00:04][%cal Oe4e5] aiming for e5!} Re6 {[%emt 0:00:02][%mdl 8192] [#] This move loses the game for Black.} (16... Qb6 $11 {and Black has nothing to worry.}) 17. e5 $1 $18 {[%emt 0:00:09][%mdl 576] Discovered Attack} Bxf3 {[%emt 0:00:18]} (17... dxe5 18. Bxb7) 18. exf6+ {[%emt 0:00:01]} Rxf6 {[%emt 0:00:01]} 19. gxf3 {[%emt 0:00:01]} Rf5 {[%emt 0:00:05]} 20. Ne4 {[%emt 0:00:10] Inhibits Qg5+.} d5 {[%emt 0:00:14]} 21. Ng3 {[%emt 0:00:07]} (21. Nxc5 $6 Qg5+ 22. Kh1 Qh4 $18) 21... Rf4 {[%emt 0:00:01]} 22. Qc3+ {[%emt 0:00:12]} Kg8 {[%emt 0:00:09]} 23. Rad1 {[%emt 0:00:07]} (23. Qxc5 Rc8 24. Qe3 Qf6 $18) 23... d4 {[%emt 0:00:45]} 24. Qxc5 {[%emt 0:00:05]} Rc8 {[%emt 0:00:01]} 25. Qe5 {[%emt 0:00:02]} Qh4 {[%emt 0:00:02]} 26. Rd2 {[%emt 0:00:48] White is clearly winning.} Rxf3 {[%emt 0:00:12]} 27. Kg2 {[%emt 0:00:01]} (27. Qxd4 Qxd4 28. Rxd4 Rxc2 $18) ({But not} 27. Rxd4 Qf6 28. Qxf6 Rxf6 $18) 27... Rf4 {[%emt 0:00:07]} 28. Re1 {[%emt 0:00:03] Black must now prevent Re4.} Qf6 {[%emt 0:00:38]} 29. Qxf6 {[%emt 0:00:03]} Rxf6 {[%emt 0:00:01]} 30. Ne2 {[%emt 0:00:14]} ({Less strong is} 30. Rxd4 Rxc2 31. Re2 Rfc6 32. Re8+ Kg7 $18) 30... Rc5 {[%emt 0:00:11]} 31. Nxd4 {[%emt 0:00:03]} Rg5+ {[%emt 0:00:00]} 32. Kh2 {[%emt 0:00:02]} Kg7 {[%emt 0:00:03]} 33. Re3 {[%emt 0:00:03]} h5 {[%emt 0:00:02]} 34. c3 {[%emt 0:00:02]} Rd5 {[%emt 0:00:04]} 35. Rde2 {[%emt 0:00:03]} a5 {[%emt 0:00:04]} 36. b4 {[%emt 0:00:01]} axb4 {[%emt 0:00:02]} 37. axb4 {[%emt 0:00:01]} Rg5 {[%emt 0:00:01]} 38. f3 {[%emt 0:00:05]} h4 {[%emt 0:00:07]} 39. Re5 {[%emt 0:00:02]} Rg3 {[%emt 0:00:01]} 40. Rg2 {[%emt 0:00:02] Weighted Error Value: White=0.14 (very precise) /Black=0.43} ({Weaker is} 40. Nxb5 Rfxf3 41. Rg2 Rxh3+ 42. Kg1 Kf8 $18) 1-0

[Event "Alef Super Stars Blitz 2023"]
[Site "Almamsha"]
[Date "2023.12.06"]
[Round "4.1"]
[White "Salem, A.R. Saleh"]
[Black "Nihal Sarin"]
[Result "0-1"]
[ECO "D11"]
[WhiteElo "2639"]
[BlackElo "2688"]
[Annotator "TA"]
[PlyCount "106"]
[EventDate "2023.11.27"]
[EventType "tourn"]
[EventCountry "UAE"]
[SourceTitle "playchess.com"]
[Source "ChessBase"]
[SourceQuality "1"]
[TimeControl "180+2"]

{[%evp 10,106,11,25,16,23,22,0,4,0,0,0,0,0,0,0,0,0,0,-14,0,-28,0,0,0,0,0,-7,9,0,0,-30,-10,-34,0,-12,0,0,0,-17,-8,-28,-17,-32,-24,-73,-66,-70,-71,-69,-77,-73,-60,-93,-93,-93,-93,-93,-96,-105,-107,-111,-79,-177,-178,-177,-169,-179,-179,-208,-162,-193,-163,-191,0,0,0,-184,0,-47,-54,-330,-312,-333,-342,-335,-260,-376,-362,-533,-398,-704,-687,-1468,-1364,-12831,-12832,-5804,-5539]} 1. d4 {[%emt 0:00:01]} d5 {[%emt 0:00:01]} 2. c4 {[%emt 0:00:01]} c6 {[%emt 0:00:01]} 3. Nf3 {[%emt 0:00:01]} Nf6 {[%emt 0:00:01]} 4. e3 {[%emt 0:00:00]} Bg4 {[%emt 0:00:02]} 5. Qb3 {[%emt 0:00:02]} Qb6 {[%emt 0:00:03]} 6. Ne5 {[%emt 0:00:02]} Bf5 {[%emt 0:00:09] D11: Slav Defence: 3 Nf3 sidelines and 3...Nf6 4 e3 Bg4.} 7. cxd5 {[%emt 0:00:01]} Qxb3 {[%emt 0:00:03]} 8. axb3 {[%emt 0:00:01] Threatening dxc6.} Nxd5 {[%emt 0:00:01] The position is equal.} 9. Bd3 {[%emt 0:00:02]} Bxd3 {[%emt 0:00:02]} 10. Nxd3 {[%emt 0:00:01]} e6 {[%emt 0:00:01]} 11. Bd2 {[%emt 0:00:04]} Na6 {[%emt 0:00:02]} 12. Ke2 {[%emt 0:00:02]} Nab4 {[%emt 0:00:05]} 13. Nxb4 {[%emt 0:00:11]} Bxb4 {[%emt 0:00:10] [#]} 14. Nc3 $146 {[%emt 0:00:14] aiming for Nxd5.} ({Predecessor:} 14. Bxb4 Nxb4 15. Nd2 a6 16. h4 f6 17. h5 Kf7 18. Ne4 Rhd8 19. Nd2 Rh8 20. Ne4 {½-½ Narciso Dublan,M (2521)-Balogh,C (2632) Barcelona Casino 18th 2013 (3)}) 14... Be7 {[%emt 0:00:07]} 15. e4 {[%emt 0:00:19]} Nf6 {[%emt 0:00:13]} 16. f3 {[%emt 0:00:03]} a6 {[%emt 0:00:00]} 17. Be3 {[%emt 0:00:03]} O-O {[%emt 0:00:11]} 18. g4 {[%emt 0:00:02][%cal Bg2g4,Bg4g5][%mdl 32]} Rfd8 {[%emt 0:00:02]} 19. g5 {[%emt 0:00:02]} Nh5 {[%emt 0:00:20]} 20. f4 {[%emt 0:00:06]} g6 {[%emt 0:00:02]} (20... f5 $5 {[%cal Rf5e4]}) 21. Kf3 {[%emt 0:00:02]} f5 {[%emt 0:00:19]} 22. gxf6 {[%emt 0:00:10]} Nxf6 {[%emt 0:00:06][%cal Bh5f6,Bf6e8,Be8d6,Bd6b5][%mdl 32]} 23. Ne2 {[%emt 0:00:15]} Kf7 {[%emt 0:00:06]} 24. Rhd1 {[%emt 0:00:03]} Rac8 {[%emt 0:00:02]} 25. Rdc1 {[%emt 0:00:23]} Rd7 {[%emt 0:00:05]} 26. Rc4 {[%emt 0:00:08]} Rcd8 {[%emt 0:00:01]} 27. b4 {[%emt 0:00:12]} (27. Nc1 $11 {might be stronger.}) 27... Ne8 $1 $17 {[%emt 0:00:03]} 28. Rh1 {[%emt 0:01:13]} Nd6 {[%emt 0:00:14]} 29. Rc2 {[%emt 0:00:01]} Nb5 {[%emt 0:00:02]} 30. Rc4 {[%emt 0:00:00]} Bf6 {[%emt 0:00:04]} 31. e5 {[%emt 0:00:02]} Be7 {[%emt 0:00:02]} 32. h4 {[%emt 0:00:02] [#]} h5 $1 {[%emt 0:00:01]} 33. Bf2 {[%emt 0:00:03]} Nc7 {[%emt 0:00:05] Black is more active.} 34. Nc1 {[%emt 0:00:08][%cal Be2c1,Bc1d3,Bd3f4][%mdl 32]} Rd5 {[%emt 0:00:25]} 35. Nd3 {[%emt 0:00:01]} Ne8 {[%emt 0:00:01]} ({Of course not} 35... Nb5 $6 36. Ke4 $11) 36. f5 {[%emt 0:00:08]} gxf5 $19 {[%emt 0:00:02]} ({Weaker is} 36... exf5 37. Nf4 $11) 37. Nf4 {[%emt 0:00:00]} Rb5 {[%emt 0:00:01]} 38. Nxh5 {[%emt 0:00:04]} Bxb4 {[%emt 0:00:03]} ({Worse is} 38... Rxb4 39. Rxb4 Bxb4 40. Be3 $17) 39. Rg1 {[%emt 0:00:03]} Be7 {[%emt 0:00:07]} 40. Rc2 {[%emt 0:00:02]} Rb3+ {[%emt 0:00:02]} 41. Ke2 {[%emt 0:00:03] [#]} Rh3 $2 {[%emt 0:00:21]} (41... Bf8 $1 $19 {Hoping for ...Bh6.} 42. Rg3 Rxg3 43. Nxg3 Nc7) 42. Nf4 $11 {[%emt 0:00:01]} Rh2 {[%emt 0:00:01]} 43. Rg2 $2 {[%emt 0:00:01]} (43. Ng6 $1 $11) 43... Rh1 $2 {[%emt 0:00:12]} ({Black should try} 43... Rxg2 $19 44. Nxg2 Nc7) 44. h5 {[%emt 0:00:02]} (44. d5 $11 cxd5 45. Ng6) 44... Nc7 $36 {[%emt 0:00:01][%mdl 2048] ...Nd5 would be deadly. Black has the initiative.} 45. Kf3 $2 {[%emt 0:00:03][%mdl 8192] This move loses the game for White.} (45. Rc3 $1 $15) 45... Nd5 $19 {[%emt 0:00:07]} 46. Nxd5 {[%emt 0:00:02]} Rxd5 {[%emt 0:00:02]} 47. Be3 {[%emt 0:00:03]} Rxh5 {[%emt 0:00:02]} 48. Rg3 {[%emt 0:00:00]} (48. Rh2 $142 Rxh2 49. Rxh2) 48... Rb5 {[%emt 0:00:08]} 49. Rcg2 {[%emt 0:00:01]} (49. Kg2 $142) 49... Bf8 {[%emt 0:00:10]} 50. Rg6 $2 {[%emt 0:00:01]} (50. Rc2) 50... Rh3+ {[%emt 0:00:01] Black is clearly winning.} 51. Ke2 {[%emt 0:00:06]} Rxb2+ {[%emt 0:00:02]} 52. Bd2 {[%emt 0:00:00]} Bh6 {[%emt 0:00:04]} 53. Rf6+ {[%emt 0:00:04]} Ke7 {[%emt 0:00:01] Weighted Error Value: White=0.58/Black=0.20 (precise)} 0-1